Cogmind - Beta 15 @@@ ROGUE MODE // 2025.09.10 @ 21:50:10 Player: Godsword Result: Self-destructed Performance ------------- Evolutions (0) 0 Regions Visited (3) 600 Robots Destroyed (12) 60 Value Destroyed (95) 95 Prototype IDs (0) 0 Alien Tech Used (0) 0 Bonus (-224) -224 TOTAL SCORE: 531 Bonus ------- Friendly Fire -224 Cogmind --------- Core Integrity 42/250 Matter 300/300 Energy 250/250 System Corruption 2% Temperature Cool (0) Movement Core (850) Ox16 Location -9/Scraptown Parts ------- > --- POWER (1) -------- Ion Engine > --- PROPULSION (2) --- (None) > --- UTILITY (2) ------ High-capacity Storage Unit > --- WEAPON (2) ------- Mini Grenade Launcher Heavy Hammer > --- INVENTORY (20) --- Light Ion Engine Light Ion Engine Subdweller Power Source Subdweller Power Source Subdweller Monowheel Improved Heat Sink Small Storage Unit High-capacity Matter Pod (200) Improved Terrain Scanner Terrain Scan Processor ECM Suite ECM Suite Subdweller Laser Mining Laser Heavy Hammer Shrapnel Trap Shrapnel Trap Peak State ------------ > --- POWER ------------ Ion Engine > --- PROPULSION ------- Compact Wheel Armored Wheel > --- UTILITY ---------- High-capacity Storage Unit Improved Terrain Scanner > --- WEAPON ----------- Mini Grenade Launcher Heavy Hammer > --- INVENTORY -------- Light Ion Engine Light Ion Engine Subdweller Power Source Subdweller Power Source Subdweller Monowheel Improved Heat Sink Small Storage Unit High-capacity Matter Pod Improved Terrain Scanner Terrain Scan Processor ECM Suite ECM Suite Subdweller Laser Mining Laser Heavy Hammer Shrapnel Trap Shrapnel Trap [Rating: 14] Favorites ----------- Power Light Ion Engine Engine Light Ion Engine Propulsion Compact Wheel Wheel Compact Wheel Utility Improved Terrain Scanner Device Improved Terrain Scanner Storage Small Storage Unit Weapon Light Assault Rifle Ballistic Gun Light Assault Rifle Launcher Mini Grenade Launcher Impact Weapon Heavy Hammer Build | -11 -10 -10 -9 ------- Run | Yrd Mat Sub Scr Slots Evolved . | . . . . Power . | . . . . Propulsion . | . . . . Utility . | . . . . Weapon . | . . . . Parts Attached 12 | 7 . 2 3 Power 2 | 1 . 1 . Engine 2 | 1 . 1 . Core . | . . . . Reactor . | . . . . Propulsion 3 | 2 . . 1 Treads . | . . . . Leg . | . . . . Wheel 3 | 2 . . 1 Hover . | . . . . Flight . | . . . . Utility 3 | 2 . 1 . Device 1 | 1 . . . Storage 2 | 1 . 1 . Processor . | . . . . Hackware . | . . . . Protection . | . . . . Artifact . | . . . . Weapon 4 | 2 . . 2 Energy Gun . | . . . . Energy Cannon . | . . . . Ballistic Gun 2 | 2 . . . Ballistic Cannon . | . . . . Launcher 1 | . . . 1 Special Weapon . | . . . . Impact Weapon 1 | . . . 1 Slashing Weapon . | . . . . Piercing Weapon . | . . . . Special Melee Weapon . | . . . . Unidentified Prototypes . | . . . . Parts Lost 4 | . . 1 3 Power 1 | . . 1 . Propulsion 2 | . . . 2 Utility 1 | . . . 1 Weapon . | . . . . Highest Loss Streak 3 | . . 1 3 To Critical Strikes . | . . . . Average Backups 8 | 1 6 9 14 Power 2 | . 2 2 4 Propulsion . | . . . 1 Utility 4 | . 2 5 6 Weapon 1 | . 2 1 2 Tool/Special . | . . . . Unused Backups 16 | . 2 . 14 Power 4 | . . . 4 Propulsion 1 | . . . 1 Utility 7 | . 1 . 6 Weapon 4 | . 1 . 3 Tool/Special . | . . . . Average Slot Usage (%) 98 | . 100 96 100 Engine 12 | . 14 10 14 Wheel 28 | . 28 28 28 Device 14 | . 14 14 14 Storage 14 | . 14 14 14 Ballistic Gun 22 | . 28 28 14 Launcher 3 | . . . 8 Impact Weapon 2 | . . . 5 Peak Build Rating 14 | 9 10 11 14 Average Rating 10 | 6 9 10 12 On Entrance 7 | . 9 10 11 Naked Turns . | . . . . Heaviest Build 50 | 11 11 48 50 Greatest Support 32 | 32 32 32 32 Greatest Overweight (x) 3 | . . 1 3 Average Overweight (x) . | . . . 1 Largest Inventory Capacity 20 | 8 8 20 20 Average Capacity 13 | 7 8 13 20 Most Carried 17 | 4 8 15 17 Average Carried 9 | 1 6 10 16 Final Capacity 20 | 8 8 20 20 Final Carried 17 | 4 8 15 17 Class Distribution -------------------- 100% | Mutant Dominant Class ---------------- Mutant | -10/Materials Mutant | -10/Subcaves Mutant | -9/Scraptown Resources | -11 -10 -10 -9 ----------- Run | Yrd Mat Sub Scr Matter Collected 581 | 308 18 35 220 Remotely . | . . . . Salvage Created 375 | 229 36 42 68 Parts 33 | 21 6 2 4 Haulers Intercepted . | . . . . Recyclers Shooed . | . . . . Parts Field Recycled . | . . . . Retrieved Matter . | . . . . Parts Self-Destructed 9 | . . 9 . Prevented . | . . . . Kills | -11 -10 -10 -9 ------- Run | Yrd Mat Sub Scr Combat Hostiles Destroyed 1 | . . 1 . Guns 1 | . . 1 . Classes Destroyed 6 | 3 1 1 1 Worker 2 | 2 . . . Builder 1 | . 1 . . Tunneler 6 | 5 1 . . Recycler 1 | 1 . . . Subdweller 1 | . . 1 . Scrapper 1 | . . . 1 Best Kill Streak 4 | 4 2 1 . Combat Bots Only 1 | . . 1 . Max Kills in Single Turn 1 | 1 1 1 1 Gunslinging . | . . . . Exploded . | . . . . Melee . | . . . . Uniques/NPCs Destroyed . | . . . . Combat | -11 -10 -10 -9 -------- Run | Yrd Mat Sub Scr Hostile Shots Fired 18 | . . 12 6 Missed 7 | . . 4 3 Hits 11 | . . 8 3 Projectile 11 | . . 8 3 Damage Taken 449 | . 27 171 251 Core 208 | . 12 64 132 Absorbed by Shields . | . . . . Core Remaining (%) 100 | 100 . . . Volleys Fired 38 | 19 9 10 . Largest 2 | 2 2 2 . Hottest 40 | 40 40 40 . Shots Fired 76 | 38 18 20 . Gun 76 | 38 18 20 . Cannon . | . . . . Launcher . | . . . . Special . | . . . . Kinetic 76 | 38 18 20 . Thermal . | . . . . Explosive . | . . . . Electromagnetic . | . . . . Robot Hit Streak 13 | 13 10 11 . Robot Miss Streak 4 | 3 4 1 . Penetration Max . | . . . . Secondary Targets . | . . . . Shots Hit Robots 52 | 25 8 18 1 Core Hits 22 | 14 4 3 1 Critical Kills 2 | 1 . . 1 Critical Parts Destroyed . | . . . . Critical Strikes 2 | 1 . . 1 Destroy 1 | 1 . . . Smash 1 | . . . 1 Melee Attacks 1 | . . . 1 Impact 1 | . . . 1 Slashing . | . . . . Piercing . | . . . . Sneak Attacks 1 | . . . 1 Combat Hostiles . | . . . . Follow-up Attacks . | . . . . Damage Inflicted 574 | 225 77 149 123 Guns 435 | 225 61 149 . Cannons . | . . . . Explosions . | . . . . Melee 123 | . . . 123 Ramming 16 | . 16 . . Kinetic 435 | 225 61 149 . Thermal . | . . . . Explosive . | . . . . Electromagnetic . | . . . . Impact 123 | . . . 123 Slashing . | . . . . Piercing . | . . . . Highest Corruption 2 | . 2 2 2 Average Corruption 2 | . 2 2 2 Corruption Purged . | . . . . Corruption Blocked . | . . . . Effects 6 | . 1 1 4 Message Errors 5 | . 1 1 3 Energy Discharges 1 | . . . 1 Overload Shots . | . . . . Overflow Damage . | . . . . Projectiles . | . . . . Explosions . | . . . . Melee . | . . . . Knockbacks . | . . . . Impact . | . . . . Kinetic . | . . . . Secondary . | . . . . Self-Inflicted Damage 15 | . 15 . . Shots . | . . . . Rammed 1 | . 1 . . Targets Rammed 1 | . 1 . . Kicked . | . . . . Crushed . | . . . . Highest Temperature . | . . . . Average Temperature . | . . . . Received Heat Transfer 66 | . 6 48 12 Siege Activations . | . . . . Martial Activations . | . . . . Shielding Activations . | . . . . Robots Disrupted . | . . . . Combat Hostiles . | . . . . Robots Corrupted . | . . . . Combat Hostiles . | . . . . Parts Fried . | . . . . Impact Corruptions . | . . . . Robots Melted . | . . . . Combat Hostiles . | . . . . Parts Melted 1 | . . 1 . Heat Transferred . | . . . . Parts Sabotaged . | . . . . Parts Stolen . | . . . . Parts Stripped . | . . . . Power Chain Reactions . | . . . . Alert | -11 -10 -10 -9 ------- Run | Yrd Mat Sub Scr Maximum Alert Level . | . . . . Low Security (%) 100 | 100 100 . . Level 1 . | . . . . Level 2 . | . . . . Level 3 . | . . . . Level 4 . | . . . . Level 5 . | . . . . High Security . | . . . . Max Security . | . . . . Peak Influence 15 | 15 7 . . Initial 6 | . 6 . . Average 2 | 3 1 . . Influence Increases 51 | 40 11 . . Destroy 0b10 Robot/NC 50 | 40 10 . . Destroy Structure 1 | . 1 . . Influence Decreases 51 | 30 21 . . Entered New Map 4 | . 4 . . Time Decay 47 | 30 17 . . Squads Dispatched . | . . . . Investigation . | . . . . Extermination . | . . . . Reinforcement . | . . . . Assault . | . . . . Garrison . | . . . . Intercept . | . . . . Searches Triggered . | . . . . Construction Impeded . | . . . . Haulers Reinforced . | . . . . Active Scanning Responses . | . . . . Cargo Convoy Interrupts . | . . . . Stealth | -11 -10 -10 -9 --------- Run | Yrd Mat Sub Scr Distress Signals . | . . . . Communications Jammed . | . . . . Distress Signals . | . . . . Times Spotted 6 | . 2 1 3 Peak Tracking Total 4 | . 2 1 4 Tactical Retreats . | . . . . Traps | -11 -10 -10 -9 ------- Run | Yrd Mat Sub Scr Traps Triggered . | . . . . Indirectly . | . . . . Trap Hack Attempts . | . . . . Triggered . | . . . . Disarmed . | . . . . Reprogrammed . | . . . . Reused . | . . . . Traps Extracted . | . . . . Installed . | . . . . Triggered . | . . . . Most Traps Carried 2 | . . 2 2 Machines | -11 -10 -10 -9 ---------- Run | Yrd Mat Sub Scr Machines Disabled . | . . . . Max in Single Turn . | . . . . Machines Repaired . | . . . . Machines Dismantled . | . . . . Machines Sabotaged . | . . . . Overloaded Fab Kills . | . . . . Hacking | -11 -10 -10 -9 --------- Run | Yrd Mat Sub Scr Machines Accessed 1 | . 1 . . Terminals 1 | . 1 . . Fabricators . | . . . . Repair Stations . | . . . . Recycling Units . | . . . . Scanalyzers . | . . . . Garrison Access . | . . . . Total Hacks 1 | . 1 . . Successful . | . . . . Failed 1 | . 1 . . Catastrophic . | . . . . Database Lockouts . | . . . . Manual . | . . . . Terminals 1 | . 1 . . Fabricators . | . . . . Repair Stations . | . . . . Recycling Units . | . . . . Scanalyzers . | . . . . Garrison Access . | . . . . Terminal Hacks . | . . . . Fabricator Hacks . | . . . . Repair Station Hacks . | . . . . Recycling Unit Hacks . | . . . . Scanalyzer . | . . . . Garrison Access Hacks . | . . . . Unauthorized Hacks . | . . . . Terminals . | . . . . Fabricators . | . . . . Repair Stations . | . . . . Recycling Units . | . . . . Scanalyzers . | . . . . Garrison Access . | . . . . Data Cores Recovered . | . . . . Used . | . . . . Hacking Detections . | . . . . Full Trace Events . | . . . . Feedback Events . | . . . . Feedback Blocked . | . . . . Robot Schematics Acquired . | . . . . Robots Built . | . . . . Authchips . | . . . . Time . | . . . . Total Robot Build Rating . | . . . . Part Schematics Acquired . | . . . . Parts Built . | . . . . Authchips . | . . . . Time . | . . . . Total Part Build Rating . | . . . . Parts Repaired . | . . . . Time . | . . . . Parts Recycled . | . . . . Recycled Matter . | . . . . Retrieved Matter . | . . . . Retrieved Components . | . . . . Parts Scanalyzed . | . . . . Part Schematics Acquired . | . . . . Parts Damaged . | . . . . Bothacking | -11 -10 -10 -9 ------------ Run | Yrd Mat Sub Scr Used RIF Installer . | . . . . Robots Hacked . | . . . . Non-combat . | . . . . Combat . | . . . . Robot Hacks Applied . | . . . . Relay Couplers Released . | . . . . Fabnet Peak Effective % . | . . . . Robots Rewired . | . . . . Allies Hacked . | . . . . Hacks Repelled . | . . . . Allies | -11 -10 -10 -9 -------- Run | Yrd Mat Sub Scr Total Allies . | . . . . Largest Group . | . . . . Highest-Rated Group . | . . . . Highest-Rated Ally . | . . . . Total Orders . | . . . . Ally Attacks . | . . . . Total Damage . | . . . . Kills . | . . . . Allies Corrupted . | . . . . Allies Melted . | . . . . Intel | -11 -10 -10 -9 ------- Run | Yrd Mat Sub Scr Active Infowar (turns) 540 | 65 121 164 190 Terrain 540 | 65 121 164 190 Robot Analysis Total . | . . . . Derelict Logs Recovered 1 | . . 1 . Drone Launches . | . . . . Drone Recoveries . | . . . . Exploration | -11 -10 -10 -9 ------------- Run | Yrd Mat Sub Scr Turns Passed 598 | 119 121 164 194 Spaces Moved 416 | 57 83 115 161 Core 2 | 2 . . . Treads . | . . . . Legs . | . . . . Wheels 414 | 55 83 115 161 Hover . | . . . . Flight . | . . . . Fastest Speed 50 | 50 100 100 110 Average Speed 106 | 98 100 106 113 Slowest Speed 145 | 100 100 115 145 Overloaded Moves . | . . . . Propulsion Burnouts . | . . . . Robots Hopped . | . . . . Potential Cave-ins . | . . . . Cave-ins Triggered . | . . . . Exploration Rate (%) 10 | 3 14 7 18 Regions Visited 3 Branch Regions 2 Pre-discovered Areas . | . . . . Known Exits Taken . | . . . . Unknown Exits Taken 3 | 1 1 1 . Scrap Searched 7 | . . 4 3 Spaces Dug . | . . . . Terrain Destroyed . | . . . . Melee . | . . . . Projectile . | . . . . AOE . | . . . . Terrain Rammed 1 | . 1 . . Walls Destroyed 1 | . 1 . . Machines Disabled . | . . . . Actions | -11 -10 -10 -9 --------- Run | Yrd Mat Sub Scr Total 504 | 86 107 141 170 Wait 11 | . 6 5 . Move 413 | 56 82 114 161 Hop . | . . . . Pick Up 20 | 4 6 8 2 Fast Attach 11 | 7 . 1 3 Attach . | . . . . Detach . | . . . . Swap 1 | . . 1 . Drop 7 | . 2 2 3 Fire 38 | 19 9 10 . Melee 1 | . . . 1 Ram 2 | . 2 . . Kick . | . . . . Crush . | . . . . Escape Stasis . | . . . . Rewire . | . . . . Trap . | . . . . Miscellaneous . | . . . . Route ------- -11/Scrapyard -10/Materials (discovered 2 exits: [*Min] / [*Sub]) -10/Subcaves -9/Scraptown History --------- Turn | Location | Event 2 | -11/Scrapyard | Met Revision 17 10 | -11/Scrapyard | Discovered new exit (range 16) 120 | -11/Scrapyard | Entered Materials 121 | -10/Materials | Met a group of wandering Federalists 167 | -10/Materials | Discovered new exit (range 13) 206 | -10/Materials | Discovered new exit (range 8) 241 | -10/Materials | Entered Subcaves 242 | -10/Subcaves | Continued accompanying wandering Federalists (4) 242 | -10/Subcaves | Approached by a straggling Scientist 250 | -10/Subcaves | Learned Materials garrison access intel 307 | -10/Subcaves | Disturbed a concealed Subdweller 324 | -10/Subcaves | Build established: Mutant 395 | -10/Subcaves | Scientist uncovered a shortcut to Scraptown 405 | -10/Subcaves | Entered Scraptown 573 | -9/Scraptown | Visited Cave Peace 594 | -9/Scraptown | Attacked by Scraptown defenders 598 | -9/Scraptown | Core integrity fell below 50% 598 | -9/Scraptown | Core integrity fell below 20% 599 | -9/Scraptown | Self-destructed Last Messages --------------- 00519_ Acquired Arm. Wheel. 00573_ LOCAL NARROWCAST: Cave Peace. Everyone deserves a first, second, and third chance. 00581_ Triborg examines you suspiciously. 00589_ LG7MB1&EDMR96OVF I#DA 1OEVC|